bitfinex/quotes_BTCUSD_20250515
["timestamp","ask_amount","ask_price","bid_price","bid_amount"]
[1747296028104,0.2368063,101760.0,101750.0,0.96914296]
[1747296028307,0.04026542,101760.0,101750.0,1.29720835]
[1747296028548,0.05009159,101760.0,101750.0,1.29720835]
[1747296028757,0.05991795,101760.0,101750.0,1.29720835]
[1747296029184,0.05009159,101760.0,101750.0,1.29720835]
[1747296029548,0.06874451,101760.0,101750.0,1.29720835]
[1747296029750,0.05891795,101760.0,101750.0,1.30020835]
[1747296029960,0.06874451,101760.0,101750.0,1.30020835]
[1747296030177,0.06674451,101760.0,101750.0,1.30020835]
[1747296030589,0.07657126,101760.0,101750.0,1.30220835]
[1747296030811,0.00982347,101790.0,101780.0,0.22597641]
[1747296031033,0.22595403,101790.0,101780.0,0.2567768]
[1747296031287,0.21613056,101790.0,101780.0,0.23712726]
[1747296031503,0.01964761,101790.0,101780.0,0.26660123]
[1747296031697,0.01964761,101790.0,101780.0,0.26660143]
[1747296031910,0.23577779,101790.0,101780.0,0.26660143]
[1747296032123,0.22595442,101790.0,101780.0,0.26660133]
[1747296032338,0.22595442,101790.0,101780.0,0.24695208]
[1747296032571,0.22595442,101790.0,101780.0,0.2567768]
[1747296032798,0.22995442,101790.0,101780.0,0.24695208]
[1747296033017,0.22013076,101790.0,101780.0,0.24695208]
[1747296033659,0.00512603,101800.0,101780.0,0.90781693]
[1747296033888,0.20624573,101820.0,101810.0,0.20626656]
[1747296034110,0.42231794,101820.0,101810.0,0.23806656]
[1747296034319,0.42231794,101820.0,101810.0,0.2577107]
[1747296034526,0.42231794,101820.0,101810.0,0.0318]
[1747296034766,0.41249727,101820.0,101810.0,0.04158477]
[1747296034989,0.41749727,101820.0,101810.0,0.04158477]
[1747296035218,0.41764243,101820.0,101810.0,0.04158477]
[1747296036323,0.41964243,101820.0,101810.0,0.04158477]
[1747296038231,0.41955333,101820.0,101810.0,0.0318]
[1747296039629,0.41955333,101820.0,101810.0,0.0162]
[1747296039944,0.20626637,101810.0,101800.0,0.373]
[1747296040147,0.40269637,101810.0,101800.0,0.373]
[1747296041088,0.40469637,101810.0,101800.0,0.373]
[1747296041863,0.40569637,101810.0,101800.0,0.373]
[1747296042275,0.21907355,101810.0,101800.0,0.59893192]
[1747296042475,0.19943,101810.0,101800.0,0.71078217]
[1747296043171,0.19643,101810.0,101800.0,0.71078217]
[1747296043628,0.19643,101810.0,101800.0,0.71178217]
[1747296043968,0.20625144,101810.0,101800.0,0.71178217]
[1747296044225,0.20625134,101810.0,101800.0,0.71178217]
[1747296044818,0.20625134,101810.0,101800.0,1.14918217]
[1747296045650,0.19643,101810.0,101800.0,1.14918217]
[1747296046287,0.20625144,101810.0,101800.0,1.14918217]
[1747296047519,0.19643,101810.0,101800.0,1.14918217]
[1747296047724,0.20625134,101810.0,101800.0,1.14918217]
[1747296047934,0.19643,101810.0,101800.0,1.14918217]
[1747296048965,0.19643,101810.0,101800.0,1.18829687]
[1747296049776,0.19643,101810.0,101800.0,1.59839687]
[1747296050947,0.19643,101810.0,101800.0,1.59939687]
[1747296051149,0.19643,101810.0,101800.0,1.16199687]
[1747296051335,0.19643,101810.0,101800.0,1.59927687]
[1747296051543,0.19643,101810.0,101800.0,1.60127687]
[1747296051750,0.20625154,101810.0,101800.0,1.60127687]
[1747296051957,0.19643,101810.0,101800.0,1.59927687]
[1747296052161,0.19643,101810.0,101800.0,1.60327687]
[1747296052359,0.19643,101810.0,101800.0,1.16499687]
[1747296052562,0.19643,101810.0,101800.0,1.60223687]
[1747296052756,0.19643,101810.0,101800.0,1.60523687]
[1747296053750,0.19643,101810.0,101800.0,1.19413687]
[1747296055244,0.19643,101810.0,101800.0,0.97561687]
[1747296055455,0.42233944,101810.0,101800.0,1.19413707]
[1747296055648,0.42233944,101810.0,101800.0,0.76671957]
[1747296055864,0.22589509,101810.0,101800.0,1.20391957]
[1747296056036,0.43216165,101810.0,101800.0,0.75689707]
[1747296056233,0.22589509,101810.0,101800.0,1.20395957]
[1747296056458,0.21607317,101810.0,101800.0,1.20395957]
[1747296056843,0.21607307,101810.0,101800.0,1.20395957]
[1747296057574,0.20625144,101810.0,101800.0,1.20395957]
[1747296057791,0.20625154,101810.0,101800.0,1.20395957]
[1747296057998,0.19643,101810.0,101800.0,1.20395957]
[1747296058639,0.19643,101810.0,101800.0,1.21395957]
[1747296059868,0.19643,101810.0,101800.0,1.62505957]
[1747296061054,0.19643,101810.0,101800.0,1.61505957]
[1747296061259,0.19643,101810.0,101800.0,1.17785957]
[1747296061664,0.19643,101810.0,101800.0,1.61469957]
[1747296062285,0.19643,101810.0,101800.0,1.17785957]
[1747296062505,0.19643,101810.0,101800.0,1.61469957]
[1747296063991,0.19643,101810.0,101800.0,1.61465957]
[1747296069181,0.19643,101810.0,101800.0,1.62441334]
[1747296070240,0.19643,101810.0,101800.0,1.58529864]
[1747296071331,0.00014516,101820.0,101810.0,0.25830984]
[1747296071594,0.00014516,101820.0,101810.0,0.35561924]
[1747296071814,0.01963913,101830.0,101820.0,0.58042849]
[1747296072054,0.01963913,101830.0,101820.0,1.11445789]
[1747296072275,0.01963903,101830.0,101820.0,1.11445789]
[1747296072504,0.02945883,101830.0,101820.0,1.11445789]
[1747296072752,0.02945883,101830.0,101820.0,1.12965789]
[1747296073430,0.03045883,101830.0,101820.0,1.12965789]
[1747296073885,0.02945883,101830.0,101820.0,1.12965789]
[1747296074544,0.01963903,101830.0,101820.0,1.13065789]
[1747296074768,0.00981942,101830.0,101820.0,1.13065789]
[1747296075216,0.02945874,101830.0,101820.0,1.11545789]
[1747296075449,0.03045874,101830.0,101820.0,1.11545789]
[1747296075908,0.03045874,101830.0,101820.0,0.67873789]
[1747296076158,0.01081942,101830.0,101820.0,1.11541789]
[1747296076399,0.01081942,101830.0,101820.0,1.14651789]
[1747296076611,0.001,101830.0,101820.0,1.14651789]
[1747296077742,0.001,101830.0,101820.0,1.14551789]
[1747296077966,0.001,101830.0,101820.0,1.55961789]
[1747296078419,0.05113585,101850.0,101840.0,0.22584327]
[1747296078665,0.06095381,101850.0,101840.0,0.66315267]
[1747296079521,0.05113527,101850.0,101840.0,0.88139267]
[1747296079670,0.06095324,101850.0,101840.0,0.88139267]
[1747296080079,0.06195324,101850.0,101840.0,0.88139267]
[1747296080281,0.04331749,101850.0,101840.0,0.88139267]
[1747296080479,0.05313517,101850.0,101840.0,0.88139267]
[1747296080681,0.0335,101850.0,101840.0,0.89593352]
[1747296080886,0.01181758,101850.0,101840.0,0.89593352]
[1747296081286,0.001,101850.0,101840.0,0.89593352]
[1747296081609,0.06946899,101860.0,101850.0,0.22582111]
[1747296081821,0.06961166,101860.0,101850.0,0.22582111]
[1747296082289,0.06961166,101860.0,101850.0,0.21600343]
[1747296082290,0.26595958,101860.0,101850.0,0.21600343]
[1747296082732,0.25814248,101860.0,101850.0,0.21600362]
[1747296082911,0.26014248,101860.0,101850.0,0.21600362]
[1747296083627,0.25032528,101860.0,101850.0,0.22582169]
[1747296084054,0.24050798,101860.0,101850.0,0.22582169]
[1747296084853,0.2404189,101860.0,101850.0,0.22582169]
[1747296085375,0.2404189,101860.0,101850.0,0.21600362]
[1747296085793,0.23060151,101860.0,101850.0,0.21600362]
[1747296087082,0.02641787,101850.0,101840.0,1.10447392]
[1747296087323,0.03623594,101850.0,101840.0,1.10447392]
[1747296087541,0.04605372,101850.0,101840.0,1.10447392]
[1747296087759,0.03623546,101850.0,101840.0,1.10447392]
[1747296088010,0.04605343,101850.0,101840.0,1.10447392]
[1747296088311,0.03623546,101850.0,101840.0,1.10447392]
[1747296088371,0.04605343,101850.0,101840.0,1.10447392]
[1747296088589,0.24812479,101860.0,101850.0,0.22582141]
[1747296089670,0.07140972,101860.0,101850.0,0.23563909]
[1747296089966,0.07540963,101860.0,101850.0,0.23563909]
[1747296090203,0.02377581,101860.0,101850.0,0.38660404]
[1747296090448,0.00414267,101860.0,101850.0,0.72660404]
[1747296091044,0.00214267,101860.0,101850.0,0.72660404]
[1747296091196,0.01195929,101860.0,101850.0,0.72660404]
[1747296091400,0.00995919,101860.0,101850.0,1.16268404]
[1747296091830,0.00995919,101860.0,101850.0,1.58664404]
[1747296092031,0.00014267,101860.0,101850.0,1.58664404]
[1747296092552,0.00014267,101860.0,101850.0,1.60294404]
[1747296092756,0.00995919,101860.0,101850.0,1.60294404]
[1747296093290,0.00014267,101860.0,101850.0,1.60294404]
[1747296094227,0.00014267,101860.0,101850.0,1.58664404]
[1747296094228,0.00995939,101860.0,101850.0,1.58664404]
[1747296094583,0.00014267,101860.0,101850.0,1.58664404]
[1747296094797,0.00014267,101860.0,101850.0,1.60244404]
[1747296095006,0.00014267,101860.0,101850.0,1.61754404]
[1747296095977,0.0325,101880.0,101870.0,0.22577677]
[1747296096183,0.03298394,101880.0,101870.0,0.75908617]
[1747296096825,0.03298394,101880.0,101870.0,1.09908617]
[1747296097232,0.03298394,101880.0,101870.0,1.11362702]
[1747296097446,0.00048394,101880.0,101870.0,1.11362702]
[1747296098293,0.00048394,101880.0,101870.0,1.13112702]
[1747296098513,0.00048394,101880.0,101870.0,0.92946702]
[1747296098727,0.00048394,101880.0,101870.0,1.14738702]
[1747296099384,0.00907965,101920.0,101910.0,0.22568816]
[1747296099603,0.0190355,101920.0,101910.0,1.08552816]
[1747296099818,0.03992475,101920.0,101910.0,1.42552816]
[1747296100034,0.06027801,101920.0,101910.0,1.42552816]
[1747296100241,0.0308451,101920.0,101910.0,1.42552816]
[1747296100663,0.06027829,101920.0,101910.0,1.42552816]
[1747296100938,0.07008981,101920.0,101910.0,0.00994574]
[1747296101151,0.05046688,101920.0,101910.0,1.085542]
[1747296101411,0.05046688,101920.0,101910.0,1.08540816]
[1747296101412,0.0308451,101920.0,101910.0,1.08540816]
[1747296101657,0.04065585,101920.0,101910.0,1.08536816]
[1747296101929,0.0308451,101920.0,101910.0,1.08536816]
[1747296102212,0.04165594,101920.0,101910.0,1.42536816]
[1747296102465,0.05146697,101920.0,101910.0,1.42540816]
[1747296102667,0.0318451,101920.0,101910.0,1.52271756]
[1747296102874,0.04165585,101920.0,101910.0,1.52271756]
[1747296103086,0.06127782,101920.0,101910.0,1.52271756]
[1747296103285,0.06127772,101920.0,101910.0,1.52271756]
[1747296103930,0.06127772,101920.0,101910.0,1.53248538]
[1747296104139,0.07108904,101920.0,101910.0,1.53248538]
[1747296104349,0.06127772,101920.0,101910.0,1.53248538]
[1747296105839,0.07108895,101920.0,101910.0,1.53248538]
[1747296106770,0.06127772,101920.0,101910.0,1.53248538]
[1747296107221,0.08090027,101920.0,101910.0,1.53248538]
[1747296107442,0.07108885,101920.0,101910.0,1.53248538]
[1747296107659,0.06127772,101920.0,101910.0,1.53248538]
[1747296107880,0.01095585,101920.0,101910.0,1.53248538]
[1747296108100,0.02076679,101920.0,101910.0,1.53248538]
[1747296108319,0.02076669,101920.0,101910.0,1.54702623]
[1747296108538,0.0011451,101920.0,101910.0,1.54702623]
[1747296108757,0.01095585,101920.0,101910.0,1.54702623]
[1747296109261,0.0011451,101920.0,101910.0,1.54702623]
[1747296109513,0.01095594,101920.0,101910.0,1.54702623]
[1747296109763,0.0011451,101920.0,101910.0,1.54802623]
[1747296110663,0.0001851,101920.0,101910.0,1.56362623]
[1747296110889,0.0001851,101920.0,101910.0,1.57862623]
[1747296111347,0.0001851,101920.0,101910.0,1.57962623]
[1747296112571,0.0001851,101920.0,101910.0,1.57762623]
[1747296112811,0.0001851,101920.0,101910.0,1.58062623]
[1747296113234,0.0001851,101920.0,101910.0,1.99172623]
[1747296113958,0.0001851,101920.0,101910.0,1.99372623]
[1747296114419,0.02630699,101960.0,101950.0,0.21577739]
[1747296114650,0.06236672,101960.0,101950.0,1.12390024]
[1747296114903,0.06236653,101960.0,101950.0,1.11409209]
[1747296115136,0.072174,101960.0,101950.0,1.12390014]
[1747296115358,0.05255925,101960.0,101950.0,1.12390014]
[1747296115784,0.06236653,101960.0,101950.0,1.12390014]
[1747296116064,0.072119,101960.0,101950.0,1.12390014]
[1747296116340,0.04275206,101960.0,101950.0,1.12390014]
[1747296116575,0.05255925,101960.0,101950.0,1.12390014]
[1747296116801,0.03294507,101960.0,101950.0,1.12390014]
[1747296117051,0.00014507,101960.0,101950.0,1.57575039]
[1747296119009,0.00014507,101960.0,101950.0,1.59155039]
[1747296119221,0.0328,101980.0,101970.0,0.22555536]
[1747296119432,0.04260497,101980.0,101970.0,0.69999006]
[1747296119649,0.04260517,101980.0,101970.0,0.79729946]
[1747296119858,0.22893,101980.0,101970.0,0.79729946]
[1747296120117,0.19613,101980.0,101970.0,0.79729946]
[1747296120333,0.21574043,101980.0,101970.0,0.84637206]
[1747296120552,0.20593497,101980.0,101970.0,0.76559291]
[1747296120776,0.19613,101980.0,101970.0,0.76559291]
[1747296120977,0.19613,101980.0,101970.0,1.20087291]
[1747296121186,0.20593497,101980.0,101970.0,1.20087291]
[1747296122060,0.20593517,101980.0,101970.0,1.20087291]
[1747296123278,0.20693517,101980.0,101970.0,1.20087291]
[1747296123487,0.20693517,101980.0,101970.0,1.20039291]
[1747296123695,0.19713,101980.0,101970.0,1.20039291]
[1747296123859,0.21674023,101980.0,101970.0,1.20039291]
[1747296124121,0.21674014,101980.0,101970.0,1.20039291]
[1747296124747,0.19713,101980.0,101970.0,1.21659291]
[1747296125161,0.19713,101980.0,101970.0,1.20039291]
[1747296125566,0.19713,101980.0,101970.0,1.21579291]
[1747296126189,0.19613,101980.0,101970.0,1.21579291]
[1747296126622,0.19713,101980.0,101970.0,1.23129291]
[1747296126836,0.19713,101980.0,101970.0,0.79849291]
[1747296127042,0.19713,101980.0,101970.0,1.23317291]
[1747296127443,0.19713,101980.0,101970.0,1.23321291]
[1747296127644,0.19713,101980.0,101970.0,0.79853291]
[1747296127891,0.19713,101980.0,101970.0,1.23317291]
[1747296128270,0.19713,101980.0,101970.0,1.22319982]
[1747296129282,0.19713,101980.0,101970.0,1.20769982]
[1747296129494,0.19713,101980.0,101970.0,1.19225982]
[1747296129926,0.21674004,101980.0,101970.0,0.75765982]
[1747296130199,0.21674004,101980.0,101970.0,1.19225982]
[1747296130515,0.19713,101980.0,101970.0,1.19221982]
[1747296131108,0.19713,101980.0,101970.0,0.75765982]
[1747296131355,0.19713,101980.0,101970.0,1.19217982]
[1747296131578,0.20693497,101980.0,101970.0,1.19217982]
[1747296131745,0.2586455,101980.0,101970.0,0.97497982]
[1747296131949,0.2586455,101980.0,101970.0,1.19217982]
[1747296133121,0.44495808,101980.0,101970.0,0.80457951]
[1747296133338,0.44495808,101980.0,101970.0,0.38113951]
[1747296133735,0.44495808,101980.0,101970.0,1.23901951]
[1747296134566,0.44395808,101980.0,101970.0,1.23901951]
[1747296134774,0.44395808,101980.0,101970.0,1.23701951]
[1747296134925,0.44395808,101980.0,101970.0,1.01969951]
[1747296135146,0.44395808,101980.0,101970.0,1.23701951]
[1747296136541,0.44395808,101980.0,101970.0,1.24682631]
[1747296136969,0.44395808,101980.0,101970.0,1.23701951]
[1747296137183,0.44495808,101980.0,101970.0,1.23701951]
[1747296138027,0.44495808,101980.0,101970.0,0.81234631]
[1747296138236,0.43515253,101980.0,101970.0,1.24678631]
[1747296139340,0.42534688,101980.0,101970.0,1.23697951]
[1747296140104,0.42534688,101980.0,101970.0,1.45272874]
[1747296140305,0.43515253,101980.0,101970.0,1.45268874]
[1747296140497,0.43515253,101980.0,101970.0,1.01828874]
[1747296140699,0.24884043,101980.0,101970.0,1.47230129]
[1747296140898,0.25864608,101980.0,101970.0,1.47230129]
[1747296141117,0.24884043,101980.0,101970.0,1.47230129]
[1747296141518,0.25864608,101980.0,101970.0,1.47230129]
[1747296141847,0.20693497,101980.0,101970.0,1.62326624]
[1747296142048,0.19713,101980.0,101970.0,1.62326624]
[1747296142247,0.19713,101980.0,101970.0,1.63936624]
[1747296142451,0.19713,101980.0,101970.0,1.65556624]
[1747296143360,0.19713,101980.0,101970.0,2.06666624]
[1747296146166,0.19713,101980.0,101970.0,1.63226624]
[1747296146381,0.19713,101980.0,101970.0,2.06658624]
[1747296146810,0.01960841,101990.0,101980.0,0.58007409]
[1747296147020,0.30718643,102000.0,101990.0,0.21570712]
[1747296147228,0.1115912,102000.0,101990.0,0.47212663]
[1747296147437,0.19614504,102010.0,101990.0,0.48193044]
[1747296147647,0.01960706,102000.0,101990.0,0.48193044]
[1747296148059,0.00980324,102000.0,101990.0,0.49173455]
[1747296148270,0.19629002,102010.0,101990.0,0.49173455]
[1747296148477,0.01960687,102000.0,101990.0,0.50153856]
[1747296148682,0.20609298,102010.0,102000.0,0.20588235]
[1747296148893,0.00980257,102010.0,102000.0,0.23529237]
[1747296149108,0.01960563,102010.0,102000.0,0.22548932]
[1747296149323,0.02940762,102010.0,102000.0,0.45221256]
[1747296149531,0.03912136,102010.0,102000.0,0.44240932]
[1747296149727,0.42144818,102010.0,102000.0,0.43260598]
[1747296149962,0.42144818,102010.0,102000.0,0.44240932]
[1747296150164,0.20587805,102020.0,102010.0,0.20586216]
[1747296150372,0.23697805,102020.0,102010.0,0.42318216]
[1747296150582,0.23697805,102020.0,102010.0,0.20586216]
[1747296150872,0.43302805,102020.0,102010.0,0.21732]
[1747296151567,0.01960514,102010.0,102000.0,0.46197484]
[1747296151775,0.23526,102010.0,102000.0,0.67885484]
[1747296152221,0.23526,102010.0,102000.0,1.2421893]
[1747296152432,0.23525981,102010.0,102000.0,1.23238625]
[1747296152607,0.23925981,102010.0,102000.0,1.23238625]
[1747296153474,0.24906267,102010.0,102000.0,1.23238625]
[1747296153872,0.26416267,102010.0,102000.0,1.2225831]
[1747296154518,0.24906267,102010.0,102000.0,1.55277986]
[1747296154726,0.23926048,102010.0,102000.0,1.57238741]
[1747296154957,0.23926048,102010.0,102000.0,1.56258397]
[1747296155163,0.4255173,102010.0,102000.0,1.56258397]
[1747296155373,0.45102026,102010.0,102000.0,1.56258397]
[1747296155678,0.44881502,102010.0,102000.0,1.33705446]
[1747296155894,0.44881502,102010.0,102000.0,0.90333446]
[1747296156115,0.44881502,102010.0,102000.0,1.33701446]
[1747296156316,0.44881502,102010.0,102000.0,0.90333446]
[1747296156491,0.44881502,102010.0,102000.0,1.55270063]
[1747296156706,0.43901216,102010.0,102000.0,1.55270063]
[1747296156914,0.40691216,102010.0,102000.0,1.55270063]
[1747296157111,0.40691216,102010.0,102000.0,1.56250435]
[1747296157494,0.43741216,102010.0,102000.0,1.33701446]
[1747296157700,0.43741216,102010.0,102000.0,1.34681838]
[1747296157998,0.43741216,102010.0,102000.0,1.34677838]
[1747296158180,0.43741216,102010.0,102000.0,1.35662226]
[1747296158382,0.43741216,102010.0,102000.0,1.56250441]
[1747296158736,0.22065543,102010.0,102000.0,1.59707138]
[1747296158989,0.24026077,102010.0,102000.0,1.59707138]
[1747296159191,0.43631997,102010.0,102000.0,1.59707138]
[1747296159469,0.43631997,102010.0,102000.0,1.58726804]
[1747296159619,0.42651759,102010.0,102000.0,1.58207157]
[1747296159829,0.42551759,102010.0,102000.0,1.58207157]
[1747296160003,0.42651759,102010.0,102000.0,1.59187501]
[1747296160753,0.42251759,102010.0,102000.0,1.59187501]
[1747296161972,0.42451759,102010.0,102000.0,1.59187501]
[1747296162332,0.21865485,102010.0,102000.0,1.59187433]
[1747296162513,0.22845761,102010.0,102000.0,1.59187433]
[1747296162705,0.23826047,102010.0,102000.0,1.59187433]
[1747296162912,0.43432035,102010.0,102000.0,1.58207109]
[1747296163149,0.42451778,102010.0,102000.0,1.58207109]
[1747296163354,0.42451778,102010.0,102000.0,0.63151111]
[1747296163355,0.43521216,102010.0,102000.0,0.63151111]
[1747296163566,0.4254092,102010.0,102000.0,0.43352]
[1747296163727,0.4254092,102010.0,102000.0,0.49850723]
[1747296164326,0.4254092,102010.0,102000.0,0.28166723]
[1747296164508,0.23618215,102000.0,101990.0,0.35988144]
[1747296164713,0.43223215,102000.0,101990.0,0.58377912]
[1747296165129,0.43223215,102000.0,101990.0,0.26301238]
[1747296165331,0.43223215,102000.0,101990.0,0.54467961]
[1747296165603,0.43223215,102000.0,101990.0,0.32783961]
[1747296166235,0.43223215,102000.0,101990.0,0.04617238]
[1747296166448,0.43223215,102000.0,101990.0,0.32783961]
[1747296166658,0.53054155,102000.0,101990.0,0.04617238]
[1747296167943,0.53054155,102000.0,101990.0,0.00014498]
[1747296168820,0.58054155,102000.0,101990.0,0.00014498]
[1747296169237,0.67685095,102000.0,101990.0,0.00014498]
[1747296169508,0.59246814,102000.0,101990.0,0.00014498]
[1747296169709,1.02598814,102000.0,101990.0,0.00014498]
[1747296169930,1.02498814,102000.0,101990.0,0.00014498]
[1747296170137,1.36298814,102000.0,101990.0,0.00014498]
[1747296170540,1.36898814,102000.0,101990.0,0.00014498]
[1747296170873,1.35906155,102000.0,101990.0,0.00014498]
[1747296171512,0.58554155,102000.0,101990.0,0.28181221]
[1747296171931,0.58554155,102000.0,101990.0,0.00014498]
[1747296173159,0.58754155,102000.0,101990.0,0.00014498]
[1747296173787,0.58554155,102000.0,101990.0,0.00014498]
[1747296175947,0.68285095,102000.0,101990.0,0.00014498]
[1747296176148,0.58554155,102000.0,101990.0,0.00014498]
[1747296177149,0.58854155,102000.0,101990.0,0.00014498]
[1747296182562,0.87020878,102000.0,101990.0,0.00014498]
[1747296182983,0.58854155,102000.0,101990.0,0.00014498]
[1747296184238,0.58331155,102000.0,101990.0,0.00014498]
[1747296190726,0.79975155,102000.0,101990.0,0.00014498]
[1747296191561,0.79971155,102000.0,101990.0,0.00014498]
[1747296191771,0.58331155,102000.0,101990.0,0.00014498]
[1747296191987,0.79971155,102000.0,101990.0,0.00014498]
[1747296192836,0.58331155,102000.0,101990.0,0.00014498]
[1747296193049,0.55301155,102000.0,101990.0,0.28181221]
[1747296193266,0.55301155,102000.0,101990.0,0.29711221]
[1747296193484,0.55301155,102000.0,101990.0,0.31251221]
[1747296193706,0.46550578,102000.0,101990.0,0.31251221]
[1747296193927,0.46550578,102000.0,101990.0,0.51841474]
[1747296194139,0.26485334,102000.0,101990.0,0.58692753]
[1747296194350,0.2344605,102000.0,101990.0,0.58692753]
[1747296194566,0.21185305,102000.0,101990.0,0.58692753]
[1747296194797,0.23145982,102000.0,101990.0,0.58692753]
[1747296195042,0.23345982,102000.0,101990.0,0.58692753]
[1747296195277,0.24326354,102000.0,101990.0,0.54782802]
[1747296195502,0.23345982,102000.0,101990.0,0.54782802]
[1747296195738,0.24326354,102000.0,101990.0,0.54782802]
[1747296195956,0.25306746,102000.0,101990.0,0.53802382]
[1747296196266,0.4295396,102000.0,101990.0,0.32231709]
[1747296196527,0.41373607,102000.0,101990.0,0.00014498]
[1747296196738,0.41373607,102000.0,101990.0,0.01674498]
[1747296196939,0.41373607,102000.0,101990.0,0.29841221]
[1747296197095,0.41373607,102000.0,101990.0,0.31481221]
[1747296197866,0.20785372,102000.0,101990.0,0.51090986]
[1747296198085,0.22746108,102000.0,101990.0,0.54032325]
[1747296198291,0.22746108,102000.0,101990.0,0.55012745]
[1747296198503,0.21765716,102000.0,101990.0,0.55012745]
[1747296198703,0.22746012,102000.0,101990.0,0.55012745]
[1747296198903,0.24126384,102000.0,101990.0,0.55012745]
[1747296199113,0.23146012,102000.0,101990.0,0.55012745]
[1747296199618,0.24126384,102000.0,101990.0,0.55012745]
[1747296200290,0.25106766,102000.0,101990.0,0.55012745]
[1747296201564,0.25106766,102000.0,101990.0,0.26846022]
[1747296201745,0.25106766,102000.0,101990.0,0.55012745]
[1747296202740,0.41773617,102000.0,101990.0,0.01674498]
[1747296202942,0.41773617,102000.0,101990.0,0.29711221]
[1747296203325,0.41773617,102000.0,101990.0,0.31261221]
[1747296203555,0.40793235,102000.0,101990.0,0.50870986]
[1747296203794,0.40793235,102000.0,101990.0,0.51851474]
[1747296203983,0.40793235,102000.0,101990.0,0.53812421]
[1747296204427,0.40793235,102000.0,101990.0,0.5479287]
[1747296204619,0.21185363,102000.0,101990.0,0.5479287]
[1747296204794,0.23146069,102000.0,101990.0,0.5577329]
[1747296205003,0.21185305,102000.0,101990.0,0.83940013]
[1747296205204,0.2216562,102000.0,101990.0,0.5577329]
[1747296205408,0.22165639,102000.0,101990.0,0.83940013]
[1747296205606,0.23145992,102000.0,101990.0,0.83940013]
[1747296206047,0.23145992,102000.0,101990.0,0.5577329]
[1747296206415,0.24126355,102000.0,101990.0,0.5577329]
[1747296206613,0.23145992,102000.0,101990.0,0.5577329]
[1747296207189,0.20205,102000.0,101990.0,0.83940013]
[1747296207591,0.20205,102000.0,101990.0,1.27670953]
[1747296208399,0.20205,102000.0,101990.0,1.29125038]
[1747296209251,0.20005,102000.0,101990.0,1.29125038]
[1747296209449,0.19605,102000.0,101990.0,1.29125038]
[1747296209653,0.19705,102000.0,101990.0,1.50741038]
[1747296209944,0.19905,102000.0,101990.0,1.50741038]
[1747296210980,0.2157145,102030.0,102020.0,0.49731092]
[1747296211234,0.20591375,102030.0,102020.0,0.50711263]
[1747296211429,0.00980075,102030.0,102020.0,0.53311424]
[1747296211653,0.22787338,102030.0,102020.0,0.52331263]
[1747296211862,0.22542301,102030.0,102020.0,0.52331263]
[1747296212070,0.21562255,102030.0,102020.0,0.51351092]
[1747296212290,0.2058218,102030.0,102020.0,0.28166723]
[1747296212489,0.20584179,102020.0,102010.0,0.8666289]
[1747296212691,0.40187179,102020.0,102010.0,0.87643166]
[1747296213205,0.40187179,102020.0,102010.0,0.89203166]
[1747296213621,0.40187179,102020.0,102010.0,0.90183433]
[1747296213824,0.40187179,102020.0,102010.0,0.89203166]
[1747296213957,0.40287179,102020.0,102010.0,0.89203166]
[1747296214163,0.4126735,102020.0,102010.0,0.90183414]
[1747296214571,0.4136735,102020.0,102010.0,0.90183433]
[1747296214991,0.4136735,102020.0,102010.0,0.61036443]
[1747296215173,0.4136735,102020.0,102010.0,0.90191684]
[1747296215304,0.39406999,102020.0,102010.0,0.68625192]
[1747296215506,0.39406999,102020.0,102010.0,0.69605478]
[1747296215721,0.39406999,102020.0,102010.0,0.69605488]
[1747296215922,0.39406999,102020.0,102010.0,0.04898469]
[1747296216160,0.40936999,102020.0,102010.0,0.03909951]
[1747296216565,0.42576999,102020.0,102010.0,0.03909951]
[1747296216826,0.39406999,102020.0,102010.0,0.03909951]
[1747296217149,0.40936999,102020.0,102010.0,0.03909951]
[1747296217406,0.42576999,102020.0,102010.0,0.03909951]
[1747296217956,0.42576999,102020.0,102010.0,0.32076674]
[1747296219386,0.39406999,102020.0,102010.0,0.32076674]
[1747296221280,0.39406999,102020.0,102010.0,0.5266289]
[1747296221486,0.39406999,102020.0,102010.0,0.32076674]
[1747296221692,0.40387189,102020.0,102010.0,0.32076674]
[1747296222076,0.40387189,102020.0,102010.0,0.5266288]
[1747296222426,0.40387189,102020.0,102010.0,0.32076674]
[1747296223039,0.40387189,102020.0,102010.0,0.5266289]
[1747296223258,0.40387189,102020.0,102010.0,0.53643166]
[1747296223455,0.39406999,102020.0,102010.0,0.5266289]
[1747296223669,0.39406999,102020.0,102010.0,0.3305697]
[1747296223871,0.39406999,102020.0,102010.0,0.32076674]
[1747296224070,0.39406999,102020.0,102010.0,0.03909951]
[1747296224582,0.39406999,102020.0,102010.0,0.32076674]
[1747296224789,0.39406999,102020.0,102010.0,0.3468697]
[1747296225162,0.20783132,102020.0,102010.0,0.58863661]
[1747296225374,0.22743463,102020.0,102010.0,0.58863661]
[1747296225553,0.22743454,102020.0,102010.0,0.58863661]
[1747296225769,0.43327643,102020.0,102010.0,0.57883433]
[1747296225987,0.21763283,102020.0,102010.0,0.58863661]
[1747296226208,0.23723653,102020.0,102010.0,0.58863661]
[1747296226412,0.42347462,102020.0,102010.0,0.57883433]
[1747296226623,0.43327661,102020.0,102010.0,0.56253443]
[1747296226866,0.43327661,102020.0,102010.0,0.03909951]
[1747296227064,0.41367378,102020.0,102010.0,0.03909951]
[1747296227270,0.44457378,102020.0,102010.0,0.03909951]
[1747296227525,0.41367378,102020.0,102010.0,0.32076674]
[1747296228172,0.42897378,102020.0,102010.0,0.03909951]
[1747296228429,0.44447378,102020.0,102010.0,0.03909951]
[1747296228654,0.02941059,102000.0,101990.0,1.16468913]
[1747296228881,0.42151902,102000.0,101990.0,1.08978073]
[1747296229093,0.42151902,102000.0,101990.0,0.29801221]
[1747296229308,0.41171578,102000.0,101990.0,0.49751952]
[1747296229530,0.41171578,102000.0,101990.0,0.84732421]
[1747296229748,0.40191225,102000.0,101990.0,0.34014498]
[1747296229966,0.40191225,102000.0,101990.0,0.54604732]
[1747296230227,0.21563725,102000.0,101990.0,0.87922324]
[1747296230467,0.22544049,102000.0,101990.0,0.87922324]
[1747296230665,0.23524431,102000.0,101990.0,0.87922324]
[1747296231062,0.23524431,102000.0,101990.0,0.88122324]
[1747296231201,0.24504823,102000.0,101990.0,0.88122324]
[1747296231410,0.24504823,102000.0,101990.0,0.88422324]
[1747296231613,0.23524499,102000.0,101990.0,0.86941904]
[1747296231913,0.43232342,102000.0,101990.0,0.87922344]
[1747296233538,0.43232342,102000.0,101990.0,0.91832295]
[1747296234039,0.22644107,102000.0,101990.0,0.91832295]
[1747296234220,0.22644107,102000.0,101990.0,0.92812715]
[1747296234761,0.21663725,102000.0,101990.0,0.92812715]
[1747296235378,0.22644107,102000.0,101990.0,0.92812715]
[1747296235583,0.21663677,102000.0,101990.0,0.92812715]
[1747296235791,0.19703,102000.0,101990.0,0.92812715]
[1747296236007,0.19703,102000.0,101990.0,1.39228448]
[1747296237042,0.19603,102000.0,101990.0,1.40682533]
[1747296237890,0.19603,102000.0,101990.0,1.40782533]